[Event "Titled Tuesday Blitz May 03 Early 2022"]
[White "Shohat, Yotam"]
[Black "Kozin, Yuri"]
[WhiteFideId "2813955"]
[BlackFideId "4129920"]
[WhiteElo "2119"]
[BlackElo "2579"]
[Result "1-0"]
[Round "11"]
[TimeControl "180+1"]
[Date "2022.05.03"]
[WhiteClock "0:00:13"]
[BlackClock "0:00:02"]

1. e4 {[%clk 0:03:00]}  c5 {[%clk 0:03:00]} 2. Nf3 {[%clk 0:02:49]}  e6 {[%clk 0:03:00]} 3. Nc3 {[%clk 0:02:47]}  a6 {[%clk 0:03:00]} 4. d4 {[%clk 0:02:47]}  cxd4 {[%clk 0:03:01]} 5. Nxd4 {[%clk 0:02:47]}  Qc7 {[%clk 0:03:01]} 6. g3 {[%clk 0:02:48]}  Bb4 {[%clk 0:03:00]} 7. Bd2 {[%clk 0:02:43]}  Nf6 {[%clk 0:03:00]} 8. Bg2 {[%clk 0:02:43]}  Nc6 {[%clk 0:03:00]} 9. Nxc6 {[%clk 0:02:37]}  dxc6 {[%clk 0:03:00]} 10. O-O {[%clk 0:02:37]}  Be7 {[%clk 0:02:56]} 11. f4 {[%clk 0:02:33]}  e5 {[%clk 0:02:56]} 12. Kh1 {[%clk 0:02:26]}  b5 {[%clk 0:02:54]} 13. fxe5 {[%clk 0:02:24]}  Ng4 {[%clk 0:02:51]} 14. Bf4 {[%clk 0:02:16]}  Be6 {[%clk 0:02:27]} 15. Nd5 {[%clk 0:02:14]}  Qb7 {[%clk 0:01:53]} 16. h3 {[%clk 0:02:04]}  g5 {[%clk 0:01:16]} 17. hxg4 {[%clk 0:01:19]}  gxf4 {[%clk 0:01:16]} 18. gxf4 {[%clk 0:01:02]}  Rd8 {[%clk 0:00:44]} 19. c4 {[%clk 0:01:01]}  bxc4 {[%clk 0:00:19]} 20. Qa4 {[%clk 0:00:55]}  O-O {[%clk 0:00:19]} 21. Qxc6 {[%clk 0:00:47]}  Qa7 {[%clk 0:00:14]} 22. Rad1 {[%clk 0:00:30]}  Bxg4 {[%clk 0:00:09]} 23. Rd2 {[%clk 0:00:17]}  Rc8 {[%clk 0:00:02]} 24. Qh6 {[%clk 0:00:14]}  Be6 {[%clk 0:00:02]} 25. Nf6+ {[%clk 0:00:13]} 1-0


[Site "https://www.chess.com"]

[Event "Titled Tuesday Blitz May 03 Early 2022"]
[White "Vokhidov, Shamsiddin"]
[Black "Nakamura, Hikaru"]
[WhiteFideId "14204223"]
[BlackFideId "2016192"]
[WhiteElo "2611"]
[BlackElo "2850"]
[Result "0-1"]
[Round "11"]
[TimeControl "180+1"]
[Date "2022.05.03"]
[WhiteClock "0:00:19"]
[BlackClock "0:00:38"]

1. e4 {[%clk 0:03:00]}  c6 {[%clk 0:02:41]} 2. d4 {[%clk 0:03:00]}  d5 {[%clk 0:02:39]} 3. e5 {[%clk 0:03:01]}  Bf5 {[%clk 0:02:37]} 4. h4 {[%clk 0:03:01]}  h5 {[%clk 0:02:36]} 5. Bd3 {[%clk 0:03:01]}  Bxd3 {[%clk 0:02:36]} 6. Qxd3 {[%clk 0:03:02]}  e6 {[%clk 0:02:36]} 7. Bg5 {[%clk 0:03:01]}  Qa5+ {[%clk 0:02:37]} 8. Nd2 {[%clk 0:03:00]}  Qa6 {[%clk 0:02:38]} 9. c4 {[%clk 0:03:00]}  Ne7 {[%clk 0:02:37]} 10. Ngf3 {[%clk 0:02:58]}  Nd7 {[%clk 0:02:35]} 11. O-O {[%clk 0:02:57]}  Nf5 {[%clk 0:02:36]} 12. Rfd1 {[%clk 0:02:52]}  Bb4 {[%clk 0:02:30]} 13. b3 {[%clk 0:02:50]}  f6 {[%clk 0:02:26]} 14. Bf4 {[%clk 0:02:35]}  Kf7 {[%clk 0:02:21]} 15. Nf1 {[%clk 0:02:32]}  Nf8 {[%clk 0:02:02]} 16. a3 {[%clk 0:02:03]}  Be7 {[%clk 0:01:59]} 17. exf6 {[%clk 0:01:52]}  gxf6 {[%clk 0:01:54]} 18. Re1 {[%clk 0:01:49]}  Rd8 {[%clk 0:01:43]} 19. Ne3 {[%clk 0:01:41]}  Ng7 {[%clk 0:01:42]} 20. g3 {[%clk 0:01:31]}  Ng6 {[%clk 0:01:37]} 21. Ng2 {[%clk 0:01:32]}  c5 {[%clk 0:01:37]} 22. Qc2 {[%clk 0:01:04]}  cxd4 {[%clk 0:01:28]} 23. Nxd4 {[%clk 0:00:49]}  e5 {[%clk 0:00:49]} 24. Nf5 {[%clk 0:00:48]}  Nxf5 {[%clk 0:00:49]} 25. Qxf5 {[%clk 0:00:49]}  exf4 {[%clk 0:00:50]} 26. cxd5 {[%clk 0:00:47]}  fxg3 {[%clk 0:00:49]} 27. fxg3 {[%clk 0:00:42]}  Qd6 {[%clk 0:00:45]} 28. Re6 {[%clk 0:00:28]}  Qxd5 {[%clk 0:00:40]} 29. Qxd5 {[%clk 0:00:19]}  Rxd5 {[%clk 0:00:39]} 30. Re2 {[%clk 0:00:20]}  Bd6 {[%clk 0:00:39]} 31. Rf1 {[%clk 0:00:18]}  Bxg3 {[%clk 0:00:39]} 32. Rf3 {[%clk 0:00:18]}  Rd1+ {[%clk 0:00:38]} 33. Rf1 {[%clk 0:00:18]}  Rxf1+ {[%clk 0:00:38]} 34. Kxf1 {[%clk 0:00:19]}  Nf4 {[%clk 0:00:38]} 0-1


[Site "https://www.chess.com"]

[Event "Titled Tuesday Blitz May 03 Early 2022"]
[White "Vysochin, Spartak"]
[Black "Kanyamarala, Tarun"]
[WhiteFideId "14103516"]
[BlackFideId "45004714"]
[WhiteElo "2385"]
[BlackElo "2177"]
[Result "1-0"]
[Round "11"]
[TimeControl "180+1"]
[Date "2022.05.03"]
[WhiteClock "0:01:33"]
[BlackClock "0:02:04"]

1. e4 {[%clk 0:03:00]}  c5 {[%clk 0:02:57]} 2. c3 {[%clk 0:03:00]}  Nf6 {[%clk 0:02:56]} 3. e5 {[%clk 0:02:59]}  Nd5 {[%clk 0:02:55]} 4. d4 {[%clk 0:02:59]}  cxd4 {[%clk 0:02:55]} 5. cxd4 {[%clk 0:03:00]}  d6 {[%clk 0:02:55]} 6. Bc4 {[%clk 0:03:00]}  dxe5 {[%clk 0:02:53]} 7. dxe5 {[%clk 0:02:59]}  Be6 {[%clk 0:02:51]} 8. Nf3 {[%clk 0:02:40]}  Nc6 {[%clk 0:02:49]} 9. O-O {[%clk 0:02:40]}  g6 {[%clk 0:02:48]} 10. Ng5 {[%clk 0:02:30]}  Bg7 {[%clk 0:02:47]} 11. Nxe6 {[%clk 0:02:29]}  fxe6 {[%clk 0:02:47]} 12. f4 {[%clk 0:02:28]}  Qb6+ {[%clk 0:02:45]} 13. Kh1 {[%clk 0:02:26]}  Rd8 {[%clk 0:02:45]} 14. Qg4 {[%clk 0:02:19]}  Nd4 {[%clk 0:02:39]} 15. Nc3 {[%clk 0:02:13]}  O-O {[%clk 0:02:32]} 16. Bxd5 {[%clk 0:02:10]}  exd5 {[%clk 0:02:32]} 17. Be3 {[%clk 0:02:10]}  Qb4 {[%clk 0:02:25]} 18. Bxd4 {[%clk 0:02:03]}  Qxd4 {[%clk 0:02:25]} 19. Rad1 {[%clk 0:02:01]}  Qb6 {[%clk 0:02:21]} 20. Nxd5 {[%clk 0:01:58]}  Qxb2 {[%clk 0:02:21]} 21. Nxe7+ {[%clk 0:01:48]}  Kh8 {[%clk 0:02:21]} 22. Nxg6+ {[%clk 0:01:44]}  hxg6 {[%clk 0:02:19]} 23. Rxd8 {[%clk 0:01:42]}  Qb5 {[%clk 0:02:04]} 24. Rxf8+ {[%clk 0:01:38]}  Bxf8 {[%clk 0:02:04]} 25. Qf3 {[%clk 0:01:33]} 1-0


[Site "https://www.chess.com"]

[Event "Titled Tuesday Blitz May 03 Early 2022"]
[White "Zhao, Jun"]
[Black "Harshavardhan G B"]
[WhiteFideId "8602522"]
[BlackFideId "25059009"]
[WhiteElo "2547"]
[BlackElo "1831"]
[Result "1/2-1/2"]
[Round "11"]
[TimeControl "180+1"]
[Date "2022.05.03"]
[WhiteClock "0:00:30"]
[BlackClock "0:01:18"]

1. e4 {[%clk 0:02:51]}  e5 {[%clk 0:02:59]} 2. Nf3 {[%clk 0:02:51]}  Nc6 {[%clk 0:02:56]} 3. Bb5 {[%clk 0:02:51]}  a6 {[%clk 0:02:54]} 4. Ba4 {[%clk 0:02:50]}  d6 {[%clk 0:02:55]} 5. O-O {[%clk 0:02:50]}  Bg4 {[%clk 0:02:54]} 6. c3 {[%clk 0:02:49]}  Qf6 {[%clk 0:02:54]} 7. d3 {[%clk 0:02:46]}  Ne7 {[%clk 0:02:53]} 8. Nbd2 {[%clk 0:02:45]}  Ng6 {[%clk 0:02:53]} 9. h3 {[%clk 0:02:43]}  h5 {[%clk 0:02:52]} 10. Re1 {[%clk 0:02:40]}  Nf4 {[%clk 0:02:39]} 11. Re3 {[%clk 0:02:39]}  Bxh3 {[%clk 0:02:36]} 12. gxh3 {[%clk 0:02:29]}  Qg6+ {[%clk 0:02:35]} 13. Kf1 {[%clk 0:02:30]}  Qg2+ {[%clk 0:02:29]} 14. Ke1 {[%clk 0:02:30]}  g5 {[%clk 0:02:24]} 15. Bxc6+ {[%clk 0:02:27]}  bxc6 {[%clk 0:02:24]} 16. Qa4 {[%clk 0:02:28]}  Kd7 {[%clk 0:02:22]} 17. d4 {[%clk 0:02:24]}  g4 {[%clk 0:02:20]} 18. d5 {[%clk 0:02:12]}  Kd8 {[%clk 0:02:15]} 19. Qxc6 {[%clk 0:01:38]}  Rc8 {[%clk 0:02:13]} 20. Nxe5 {[%clk 0:01:38]}  dxe5 {[%clk 0:02:09]} 21. Qf6+ {[%clk 0:01:38]}  Kd7 {[%clk 0:02:03]} 22. Qf5+ {[%clk 0:01:14]}  Kd8 {[%clk 0:01:59]} 23. Qf6+ {[%clk 0:01:05]}  Kd7 {[%clk 0:01:58]} 24. Qxh8 {[%clk 0:01:00]}  Bc5 {[%clk 0:01:57]} 25. Qf6 {[%clk 0:00:50]}  Bxe3 {[%clk 0:01:20]} 26. Qxf7+ {[%clk 0:00:50]}  Kd8 {[%clk 0:01:21]} 27. Qf8+ {[%clk 0:00:45]}  Kd7 {[%clk 0:01:20]} 28. Qf7+ {[%clk 0:00:37]}  Kd8 {[%clk 0:01:20]} 29. Qf8+ {[%clk 0:00:29]}  Kd7 {[%clk 0:01:18]} 30. Qf7+ {[%clk 0:00:30]} 1/2-1/2